[Event "Titled Tuesday Blitz October 19 2021"]
[White "Svidler, Peter"]
[Black "Zubov, Alexander"]
[WhiteFideId "4102142"]
[BlackFideId "14109409"]
[WhiteElo "2709"]
[BlackElo "2685"]
[Result "0-1"]
[Round "09"]
[TimeControl "180+1"]
[Date "2021.10.19"]
[WhiteClock "0:01:04"]
[BlackClock "0:00:27"]

1. e4 {[%clk 0:03:00]}  Nc6 {[%clk 0:03:00]} 2. Nf3 {[%clk 0:02:58]}  d6 {[%clk 0:02:59]} 3. d4 {[%clk 0:02:57]}  Nf6 {[%clk 0:03:00]} 4. Nc3 {[%clk 0:02:57]}  g6 {[%clk 0:03:00]} 5. d5 {[%clk 0:02:54]}  Nb8 {[%clk 0:03:00]} 6. h3 {[%clk 0:02:55]}  Bg7 {[%clk 0:02:59]} 7. a4 {[%clk 0:02:49]}  e5 {[%clk 0:02:54]} 8. a5 {[%clk 0:02:39]}  a6 {[%clk 0:02:49]} 9. Be3 {[%clk 0:02:39]}  O-O {[%clk 0:02:36]} 10. Be2 {[%clk 0:02:38]}  Nbd7 {[%clk 0:02:32]} 11. Nd2 {[%clk 0:02:38]}  Ne8 {[%clk 0:02:29]} 12. O-O {[%clk 0:02:37]}  f5 {[%clk 0:02:28]} 13. exf5 {[%clk 0:02:35]}  gxf5 {[%clk 0:02:29]} 14. f4 {[%clk 0:02:35]}  e4 {[%clk 0:02:28]} 15. Nc4 {[%clk 0:02:30]}  Qh4 {[%clk 0:02:17]} 16. Bd4 {[%clk 0:02:24]}  Bxd4+ {[%clk 0:02:01]} 17. Qxd4 {[%clk 0:02:24]}  Ng7 {[%clk 0:02:00]} 18. Kh2 {[%clk 0:02:19]}  Nf6 {[%clk 0:01:58]} 19. Qf2 {[%clk 0:02:12]}  Qh6 {[%clk 0:01:56]} 20. Qg3 {[%clk 0:02:09]}  Bd7 {[%clk 0:01:50]} 21. Qg5 {[%clk 0:02:07]}  Qg6 {[%clk 0:01:50]} 22. Ne3 {[%clk 0:02:06]}  Kf7 {[%clk 0:01:42]} 23. Rad1 {[%clk 0:01:50]}  h6 {[%clk 0:01:38]} 24. Qxg6+ {[%clk 0:01:50]}  Kxg6 {[%clk 0:01:39]} 25. Rd4 {[%clk 0:01:49]}  h5 {[%clk 0:01:22]} 26. h4 {[%clk 0:01:46]}  Kf7 {[%clk 0:01:05]} 27. Ncd1 {[%clk 0:01:41]}  Ke7 {[%clk 0:01:02]} 28. c4 {[%clk 0:01:41]}  c5 {[%clk 0:00:59]} 29. Rd2 {[%clk 0:01:32]}  b6 {[%clk 0:00:55]} 30. axb6 {[%clk 0:01:31]}  Rfb8 {[%clk 0:00:55]} 31. Nc3 {[%clk 0:01:31]}  Rxb6 {[%clk 0:00:55]} 32. Ra1 {[%clk 0:01:31]}  Kd8 {[%clk 0:00:52]} 33. g3 {[%clk 0:01:30]}  Kc7 {[%clk 0:00:52]} 34. Bd1 {[%clk 0:01:29]}  Rb4 {[%clk 0:00:50]} 35. Kg1 {[%clk 0:01:28]}  Kb7 {[%clk 0:00:39]} 36. Kf2 {[%clk 0:01:26]}  Kc7 {[%clk 0:00:36]} 37. b3 {[%clk 0:01:24]}  Kb7 {[%clk 0:00:35]} 38. Rda2 {[%clk 0:01:23]}  Rb6 {[%clk 0:00:34]} 39. Ke1 {[%clk 0:01:23]}  Nge8 {[%clk 0:00:32]} 40. Kd2 {[%clk 0:01:23]}  Nc7 {[%clk 0:00:32]} 41. Ne2 {[%clk 0:01:17]}  Kb8 {[%clk 0:00:31]} 42. Kc3 {[%clk 0:01:17]}  Kc8 {[%clk 0:00:30]} 43. Ng1 {[%clk 0:01:16]}  Rab8 {[%clk 0:00:30]} 44. Ra3 {[%clk 0:01:14]}  Kd8 {[%clk 0:00:30]} 45. Nh3 {[%clk 0:01:14]}  Ke7 {[%clk 0:00:30]} 46. Ng5 {[%clk 0:01:13]}  R8b7 {[%clk 0:00:29]} 47. Be2 {[%clk 0:01:05]}  Rb8 {[%clk 0:00:29]} 48. Rb1 {[%clk 0:01:05]}  R8b7 {[%clk 0:00:28]} 49. Nc2 {[%clk 0:01:05]}  Rb8 {[%clk 0:00:28]} 50. Rb2 {[%clk 0:01:04]}  R8b7 {[%clk 0:00:28]} 51. Raa2 {[%clk 0:01:04]}  Rb8 {[%clk 0:00:28]} 52. b4 {[%clk 0:01:04]}  cxb4+ {[%clk 0:00:27]} 53. Rxb4 {[%clk 0:01:04]}  Ncxd5+ {[%clk 0:00:27]} 0-1


[Site "https://www.chess.com"]

[Event "Titled Tuesday Blitz October 19 2021"]
[White "Yilmaz, Mustafa"]
[Black "Tang, Andrew"]
[WhiteFideId "6302718"]
[BlackFideId "2059630"]
[WhiteElo "2518"]
[BlackElo "2588"]
[Result "1-0"]
[Round "09"]
[TimeControl "180+1"]
[Date "2021.10.19"]
[WhiteClock "0:00:18"]
[BlackClock "0:00:06"]

1. d4 {[%clk 0:03:00]}  d5 {[%clk 0:02:55]} 2. c4 {[%clk 0:03:01]}  e6 {[%clk 0:02:55]} 3. Nc3 {[%clk 0:03:01]}  Be7 {[%clk 0:02:53]} 4. Nf3 {[%clk 0:03:00]}  Nf6 {[%clk 0:02:53]} 5. Bf4 {[%clk 0:02:59]}  O-O {[%clk 0:02:54]} 6. e3 {[%clk 0:02:59]}  b6 {[%clk 0:02:54]} 7. Bd3 {[%clk 0:02:58]}  c5 {[%clk 0:02:54]} 8. cxd5 {[%clk 0:02:52]}  Nxd5 {[%clk 0:02:54]} 9. Nxd5 {[%clk 0:02:50]}  exd5 {[%clk 0:02:55]} 10. Ne5 {[%clk 0:02:49]}  c4 {[%clk 0:02:34]} 11. Nxc4 {[%clk 0:02:45]}  g5 {[%clk 0:01:15]} 12. Qh5 {[%clk 0:01:12]}  f5 {[%clk 0:01:13]} 13. Bxb8 {[%clk 0:01:03]}  Rxb8 {[%clk 0:00:51]} 14. Ne5 {[%clk 0:01:03]}  Bb4+ {[%clk 0:00:42]} 15. Ke2 {[%clk 0:01:01]}  Qf6 {[%clk 0:00:35]} 16. h4 {[%clk 0:00:56]}  g4 {[%clk 0:00:28]} 17. Nxg4 {[%clk 0:00:50]}  Qd6 {[%clk 0:00:22]} 18. Nh6+ {[%clk 0:00:39]}  Kg7 {[%clk 0:00:20]} 19. Nxf5+ {[%clk 0:00:38]}  Bxf5 {[%clk 0:00:20]} 20. Bxf5 {[%clk 0:00:39]}  h6 {[%clk 0:00:19]} 21. Rh3 {[%clk 0:00:38]}  Rf6 {[%clk 0:00:14]} 22. Rg3+ {[%clk 0:00:37]}  Kh8 {[%clk 0:00:15]} 23. Bg6 {[%clk 0:00:28]}  Qf8 {[%clk 0:00:14]} 24. Rf3 {[%clk 0:00:27]}  Kg7 {[%clk 0:00:13]} 25. Bd3 {[%clk 0:00:25]}  Re8 {[%clk 0:00:12]} 26. Rc1 {[%clk 0:00:24]}  Re7 {[%clk 0:00:11]} 27. Qg4+ {[%clk 0:00:23]}  Kf7 {[%clk 0:00:08]} 28. Rc8 {[%clk 0:00:20]}  Qg7 {[%clk 0:00:07]} 29. Qh5+ {[%clk 0:00:19]}  Ke6 {[%clk 0:00:07]} 30. Rc6+ {[%clk 0:00:18]}  Bd6 {[%clk 0:00:07]} 31. Qe5+ {[%clk 0:00:18]}  Kf7 {[%clk 0:00:06]} 32. Rxf6+ {[%clk 0:00:17]}  Qxf6 {[%clk 0:00:06]} 33. Qxf6+ {[%clk 0:00:18]} 1-0


[Site "https://www.chess.com"]

[Event "Titled Tuesday Blitz October 19 2021"]
[White "Abarca Gonzalez, Nicolas"]
[Black "Svane, Rasmus"]
[WhiteFideId "3409422"]
[BlackFideId "4657101"]
[WhiteElo "2504"]
[BlackElo "2643"]
[Result "1-0"]
[Round "10"]
[TimeControl "180+1"]
[Date "2021.10.19"]
[WhiteClock "0:02:10"]
[BlackClock "0:00:31"]

1. e4 {[%clk 0:03:00]}  c6 {[%clk 0:02:57]} 2. d4 {[%clk 0:03:00]}  d5 {[%clk 0:02:58]} 3. exd5 {[%clk 0:03:00]}  cxd5 {[%clk 0:02:59]} 4. c4 {[%clk 0:03:01]}  Nf6 {[%clk 0:02:59]} 5. Nc3 {[%clk 0:03:00]}  Nc6 {[%clk 0:02:59]} 6. Nf3 {[%clk 0:03:00]}  a6 {[%clk 0:02:59]} 7. cxd5 {[%clk 0:02:59]}  Nxd5 {[%clk 0:03:00]} 8. Bd3 {[%clk 0:03:00]}  g6 {[%clk 0:03:00]} 9. h4 {[%clk 0:02:58]}  Bg7 {[%clk 0:02:53]} 10. h5 {[%clk 0:02:58]}  Bg4 {[%clk 0:02:46]} 11. Be4 {[%clk 0:02:56]}  Nxc3 {[%clk 0:02:20]} 12. bxc3 {[%clk 0:02:57]}  Bxh5 {[%clk 0:02:21]} 13. Rb1 {[%clk 0:02:54]}  Qd7 {[%clk 0:02:08]} 14. Qb3 {[%clk 0:02:54]}  b5 {[%clk 0:01:54]} 15. Ng5 {[%clk 0:02:52]}  O-O {[%clk 0:01:43]} 16. Nxh7 {[%clk 0:02:44]}  Rfc8 {[%clk 0:01:26]} 17. Ng5 {[%clk 0:02:43]}  e6 {[%clk 0:01:01]} 18. f3 {[%clk 0:02:41]}  b4 {[%clk 0:00:54]} 19. g4 {[%clk 0:02:37]}  bxc3 {[%clk 0:00:54]} 20. gxh5 {[%clk 0:02:32]}  Nxd4 {[%clk 0:00:55]} 21. Qb7 {[%clk 0:02:27]}  Qxb7 {[%clk 0:00:44]} 22. Rxb7 {[%clk 0:02:23]}  f5 {[%clk 0:00:45]} 23. h6 {[%clk 0:02:19]}  Bxh6 {[%clk 0:00:31]} 24. Rxh6 {[%clk 0:02:13]}  fxe4 {[%clk 0:00:31]} 25. Rxg6+ {[%clk 0:02:11]}  Kh8 {[%clk 0:00:31]} 26. Rh7# {[%clk 0:02:10]} 1-0


[Site "https://www.chess.com"]

[Event "Titled Tuesday Blitz October 19 2021"]
[White "Bortnyk, Olexandr"]
[Black "Salimova, Nurgyul"]
[WhiteFideId "14120828"]
[BlackFideId "2915138"]
[WhiteElo "2723"]
[BlackElo "2071"]
[Result "1-0"]
[Round "10"]
[TimeControl "180+1"]
[Date "2021.10.19"]
[WhiteClock "0:01:33"]
[BlackClock "0:00:38"]

1. e4 {[%clk 0:03:00]}  c5 {[%clk 0:02:53]} 2. c3 {[%clk 0:03:00]}  Nf6 {[%clk 0:02:50]} 3. e5 {[%clk 0:03:00]}  Nd5 {[%clk 0:02:51]} 4. d4 {[%clk 0:03:01]}  cxd4 {[%clk 0:02:51]} 5. Nf3 {[%clk 0:03:02]}  d6 {[%clk 0:02:47]} 6. cxd4 {[%clk 0:03:01]}  Nc6 {[%clk 0:02:42]} 7. Bc4 {[%clk 0:03:01]}  Nb6 {[%clk 0:02:42]} 8. Bb5 {[%clk 0:03:02]}  dxe5 {[%clk 0:02:40]} 9. Nxe5 {[%clk 0:03:03]}  Bd7 {[%clk 0:02:40]} 10. Nxd7 {[%clk 0:03:03]}  Qxd7 {[%clk 0:02:41]} 11. Nc3 {[%clk 0:03:03]}  e6 {[%clk 0:02:41]} 12. O-O {[%clk 0:03:04]}  a6 {[%clk 0:02:39]} 13. Bxc6 {[%clk 0:03:04]}  Qxc6 {[%clk 0:02:40]} 14. Qg4 {[%clk 0:03:05]}  h5 {[%clk 0:02:40]} 15. Qg5 {[%clk 0:03:03]}  Be7 {[%clk 0:02:16]} 16. Qxg7 {[%clk 0:02:50]}  O-O-O {[%clk 0:02:15]} 17. Qxf7 {[%clk 0:02:50]}  Rdg8 {[%clk 0:01:59]} 18. f3 {[%clk 0:02:33]}  Bd6 {[%clk 0:01:23]} 19. Bf4 {[%clk 0:02:15]}  Bxf4 {[%clk 0:01:03]} 20. Qxf4 {[%clk 0:02:16]}  Rf8 {[%clk 0:01:04]} 21. Qe4 {[%clk 0:02:15]}  Qd7 {[%clk 0:01:00]} 22. Qe5 {[%clk 0:02:09]}  Rhg8 {[%clk 0:00:51]} 23. Rac1 {[%clk 0:01:54]}  Kd8 {[%clk 0:00:46]} 24. Ne4 {[%clk 0:01:49]}  Rf5 {[%clk 0:00:40]} 25. Qb8+ {[%clk 0:01:49]}  Nc8 {[%clk 0:00:38]} 26. Nd6 {[%clk 0:01:33]} 1-0


[Site "https://www.chess.com"]

[Event "Titled Tuesday Blitz October 19 2021"]
[White "Durarbayli, Vasif"]
[Black "Ovetchkin, Roman"]
[WhiteFideId "13402935"]
[BlackFideId "4119991"]
[WhiteElo "2522"]
[BlackElo "2432"]
[Result "1-0"]
[Round "10"]
[TimeControl "180+1"]
[Date "2021.10.19"]
[WhiteClock "0:00:37"]
[BlackClock "0:00:27"]

1. e4 {[%clk 0:03:00]}  c6 {[%clk 0:02:58]} 2. d4 {[%clk 0:03:00]}  d5 {[%clk 0:02:59]} 3. exd5 {[%clk 0:03:01]}  cxd5 {[%clk 0:02:59]} 4. c4 {[%clk 0:03:01]}  Nf6 {[%clk 0:02:59]} 5. Nc3 {[%clk 0:03:02]}  g6 {[%clk 0:02:59]} 6. Qb3 {[%clk 0:03:00]}  Bg7 {[%clk 0:02:59]} 7. cxd5 {[%clk 0:03:01]}  O-O {[%clk 0:03:00]} 8. Be2 {[%clk 0:03:01]}  Nbd7 {[%clk 0:02:59]} 9. Bf3 {[%clk 0:03:00]}  Nb6 {[%clk 0:03:00]} 10. Bf4 {[%clk 0:02:57]}  Bg4 {[%clk 0:02:55]} 11. Bxg4 {[%clk 0:02:39]}  Nxg4 {[%clk 0:02:55]} 12. Nge2 {[%clk 0:02:40]}  Nf6 {[%clk 0:02:52]} 13. d6 {[%clk 0:02:39]}  exd6 {[%clk 0:02:51]} 14. O-O {[%clk 0:02:39]}  Re8 {[%clk 0:02:34]} 15. a4 {[%clk 0:02:27]}  a5 {[%clk 0:01:55]} 16. Rfe1 {[%clk 0:01:51]}  Ra6 {[%clk 0:01:53]} 17. d5 {[%clk 0:01:41]}  Nbd7 {[%clk 0:01:41]} 18. Nd4 {[%clk 0:01:32]}  Nc5 {[%clk 0:01:37]} 19. Qc4 {[%clk 0:01:28]}  Nfd7 {[%clk 0:01:29]} 20. Ndb5 {[%clk 0:01:06]}  Ne5 {[%clk 0:01:21]} 21. Bxe5 {[%clk 0:01:06]}  Rxe5 {[%clk 0:01:17]} 22. Rxe5 {[%clk 0:01:06]}  Bxe5 {[%clk 0:01:17]} 23. Re1 {[%clk 0:01:07]}  Ra8 {[%clk 0:01:03]} 24. Rxe5 {[%clk 0:01:00]}  dxe5 {[%clk 0:01:02]} 25. Qxc5 {[%clk 0:01:00]}  Rc8 {[%clk 0:00:57]} 26. Qe3 {[%clk 0:01:00]}  Qf6 {[%clk 0:00:52]} 27. d6 {[%clk 0:00:54]}  Qe6 {[%clk 0:00:51]} 28. h3 {[%clk 0:00:53]}  Kg7 {[%clk 0:00:50]} 29. Qe4 {[%clk 0:00:51]}  Rc6 {[%clk 0:00:36]} 30. Qd5 {[%clk 0:00:43]}  Qxd5 {[%clk 0:00:28]} 31. Nxd5 {[%clk 0:00:44]}  Rc8 {[%clk 0:00:28]} 32. d7 {[%clk 0:00:36]}  Rd8 {[%clk 0:00:27]} 33. Nb6 {[%clk 0:00:37]} 1-0


[Site "https://www.chess.com"]

[Event "Titled Tuesday Blitz October 19 2021"]
[White "Gelman, Alexander"]
[Black "Nogerbek, Kazybek"]
[WhiteFideId "4118316"]
[BlackFideId "13710427"]
[WhiteElo "2375"]
[BlackElo "2436"]
[Result "0-1"]
[Round "10"]
[TimeControl "180+1"]
[Date "2021.10.19"]
[WhiteClock "0:00:11"]
[BlackClock "0:00:52"]

1. d4 {[%clk 0:02:59]}  d5 {[%clk 0:02:59]} 2. Nc3 {[%clk 0:02:59]}  Nf6 {[%clk 0:02:58]} 3. Bf4 {[%clk 0:02:59]}  c5 {[%clk 0:02:57]} 4. e3 {[%clk 0:02:59]}  cxd4 {[%clk 0:02:58]} 5. exd4 {[%clk 0:02:59]}  a6 {[%clk 0:02:58]} 6. Nf3 {[%clk 0:02:59]}  Bg4 {[%clk 0:02:58]} 7. h3 {[%clk 0:02:59]}  Bxf3 {[%clk 0:02:58]} 8. Qxf3 {[%clk 0:03:00]}  Nc6 {[%clk 0:02:58]} 9. O-O-O {[%clk 0:03:01]}  e6 {[%clk 0:02:58]} 10. Kb1 {[%clk 0:03:00]}  Rc8 {[%clk 0:02:57]} 11. g4 {[%clk 0:03:00]}  Bb4 {[%clk 0:02:54]} 12. g5 {[%clk 0:03:00]}  Bxc3 {[%clk 0:02:52]} 13. Qxc3 {[%clk 0:02:59]}  Ne4 {[%clk 0:02:52]} 14. Qe3 {[%clk 0:02:55]}  Qb6 {[%clk 0:02:49]} 15. f3 {[%clk 0:02:33]}  e5 {[%clk 0:02:44]} 16. dxe5 {[%clk 0:02:10]}  Qxe3 {[%clk 0:02:38]} 17. Bxe3 {[%clk 0:02:10]}  Ng3 {[%clk 0:02:38]} 18. Rg1 {[%clk 0:02:04]}  Nxf1 {[%clk 0:02:32]} 19. Rgxf1 {[%clk 0:02:04]}  Ne7 {[%clk 0:02:30]} 20. f4 {[%clk 0:01:55]}  g6 {[%clk 0:02:23]} 21. h4 {[%clk 0:01:54]}  Kd7 {[%clk 0:02:21]} 22. h5 {[%clk 0:01:52]}  Ke6 {[%clk 0:02:19]} 23. Rh1 {[%clk 0:01:50]}  Nf5 {[%clk 0:02:18]} 24. Bf2 {[%clk 0:01:50]}  Rhd8 {[%clk 0:02:11]} 25. h6 {[%clk 0:01:45]}  Rc4 {[%clk 0:02:10]} 26. Bb6 {[%clk 0:01:29]}  Rdc8 {[%clk 0:02:06]} 27. Rhf1 {[%clk 0:01:27]}  Rxc2 {[%clk 0:02:04]} 28. Rd3 {[%clk 0:01:12]}  R8c4 {[%clk 0:01:51]} 29. Rfd1 {[%clk 0:01:02]}  Rg2 {[%clk 0:01:41]} 30. Rxd5 {[%clk 0:00:52]}  Rb4 {[%clk 0:01:41]} 31. Bd8 {[%clk 0:00:51]}  Rbxb2+ {[%clk 0:01:40]} 32. Ka1 {[%clk 0:00:51]}  Rxa2+ {[%clk 0:01:40]} 33. Kb1 {[%clk 0:00:52]}  Rgb2+ {[%clk 0:01:29]} 34. Kc1 {[%clk 0:00:52]}  Rf2 {[%clk 0:01:30]} 35. Kb1 {[%clk 0:00:51]}  Rab2+ {[%clk 0:01:26]} 36. Ka1 {[%clk 0:00:51]}  Ne3 {[%clk 0:01:17]} 37. f5+ {[%clk 0:00:37]}  Kxf5 {[%clk 0:01:02]} 38. e6+ {[%clk 0:00:37]}  Kxe6 {[%clk 0:01:03]} 39. Rd6+ {[%clk 0:00:31]}  Kf5 {[%clk 0:00:59]} 40. R1d4 {[%clk 0:00:17]}  Nc2+ {[%clk 0:00:52]} 41. Kxb2 {[%clk 0:00:16]}  Nxd4+ {[%clk 0:00:53]} 42. Kb1 {[%clk 0:00:13]}  Ne6 {[%clk 0:00:53]} 43. Rd7 {[%clk 0:00:12]}  Nxd8 {[%clk 0:00:52]} 44. Rxd8 {[%clk 0:00:11]}  Kxg5 {[%clk 0:00:52]} 0-1


[Site "https://www.chess.com"]

[Event "Titled Tuesday Blitz October 19 2021"]
[White "Ghazarian, Kirk"]
[Black "Nigmatov, Ortik"]
[WhiteFideId "30908604"]
[BlackFideId "14202131"]
[WhiteElo "2003"]
[BlackElo "2346"]
[Result "0-1"]
[Round "10"]
[TimeControl "180+1"]
[Date "2021.10.19"]
[WhiteClock "0:01:05"]
[BlackClock "0:01:36"]

1. d4 {[%clk 0:03:00]}  Nf6 {[%clk 0:02:59]} 2. b3 {[%clk 0:03:01]}  g6 {[%clk 0:02:58]} 3. Bb2 {[%clk 0:03:02]}  Bg7 {[%clk 0:02:59]} 4. Nf3 {[%clk 0:03:02]}  O-O {[%clk 0:02:59]} 5. e3 {[%clk 0:03:03]}  d5 {[%clk 0:03:00]} 6. Bd3 {[%clk 0:03:03]}  c6 {[%clk 0:02:57]} 7. Ne5 {[%clk 0:03:03]}  Nbd7 {[%clk 0:02:57]} 8. Nxd7 {[%clk 0:03:04]}  Nxd7 {[%clk 0:02:55]} 9. Nd2 {[%clk 0:03:04]}  e5 {[%clk 0:02:56]} 10. O-O {[%clk 0:03:00]}  e4 {[%clk 0:02:56]} 11. Be2 {[%clk 0:03:00]}  f5 {[%clk 0:02:57]} 12. c4 {[%clk 0:02:52]}  f4 {[%clk 0:02:57]} 13. exf4 {[%clk 0:02:40]}  Rxf4 {[%clk 0:02:55]} 14. cxd5 {[%clk 0:02:36]}  cxd5 {[%clk 0:02:56]} 15. f3 {[%clk 0:02:34]}  e3 {[%clk 0:02:56]} 16. Nb1 {[%clk 0:02:35]}  Qb6 {[%clk 0:02:53]} 17. Nc3 {[%clk 0:02:21]}  Rxd4 {[%clk 0:02:52]} 18. Qc1 {[%clk 0:02:02]}  Rd2 {[%clk 0:02:51]} 19. Rd1 {[%clk 0:01:54]}  Qc5 {[%clk 0:02:48]} 20. b4 {[%clk 0:01:42]}  Qd4 {[%clk 0:02:00]} 21. Kf1 {[%clk 0:01:28]}  Nb6 {[%clk 0:01:56]} 22. Na4 {[%clk 0:01:18]}  Rxd1+ {[%clk 0:01:55]} 23. Qxd1 {[%clk 0:01:14]}  Qxd1+ {[%clk 0:01:48]} 24. Rxd1 {[%clk 0:01:11]}  Nxa4 {[%clk 0:01:47]} 25. Bxg7 {[%clk 0:01:11]}  Kxg7 {[%clk 0:01:48]} 26. Rxd5 {[%clk 0:01:12]}  Bf5 {[%clk 0:01:46]} 27. Re5 {[%clk 0:01:09]}  Nc3 {[%clk 0:01:46]} 28. Re7+ {[%clk 0:01:08]}  Kf6 {[%clk 0:01:45]} 29. Rxe3 {[%clk 0:01:07]}  Nxe2 {[%clk 0:01:45]} 30. Kxe2 {[%clk 0:01:08]}  Rc8 {[%clk 0:01:45]} 31. g4 {[%clk 0:01:08]}  Be6 {[%clk 0:01:42]} 32. g5+ {[%clk 0:01:05]}  Kf7 {[%clk 0:01:36]} 0-1


[Site "https://www.chess.com"]

[Event "Titled Tuesday Blitz October 19 2021"]
[White "Hirneise, Jens"]
[Black "Tristan, Leonardo"]
[WhiteFideId "24614734"]
[BlackFideId "113816"]
[WhiteElo "2323"]
[BlackElo "2404"]
[Result "0-1"]
[Round "10"]
[TimeControl "180+1"]
[Date "2021.10.19"]
[WhiteClock "0:00:02"]
[BlackClock "0:00:59"]

1. b3 {[%clk 0:03:00]}  d5 {[%clk 0:03:00]} 2. Bb2 {[%clk 0:03:00]}  Bf5 {[%clk 0:03:00]} 3. d3 {[%clk 0:03:00]}  e6 {[%clk 0:03:00]} 4. Nd2 {[%clk 0:03:00]}  Nf6 {[%clk 0:02:59]} 5. g3 {[%clk 0:03:00]}  h6 {[%clk 0:02:58]} 6. Bg2 {[%clk 0:03:01]}  Bh7 {[%clk 0:02:58]} 7. e4 {[%clk 0:02:59]}  c6 {[%clk 0:02:59]} 8. Ne2 {[%clk 0:02:58]}  Be7 {[%clk 0:02:59]} 9. O-O {[%clk 0:02:58]}  O-O {[%clk 0:02:59]} 10. a3 {[%clk 0:02:52]}  a5 {[%clk 0:02:59]} 11. h3 {[%clk 0:02:51]}  Nbd7 {[%clk 0:02:59]} 12. e5 {[%clk 0:02:46]}  Ne8 {[%clk 0:02:59]} 13. f4 {[%clk 0:02:47]}  Qb6+ {[%clk 0:02:57]} 14. Kh1 {[%clk 0:02:45]}  Nc7 {[%clk 0:02:58]} 15. Nf3 {[%clk 0:02:42]}  a4 {[%clk 0:02:51]} 16. b4 {[%clk 0:02:41]}  c5 {[%clk 0:02:52]} 17. c3 {[%clk 0:02:39]}  cxb4 {[%clk 0:02:47]} 18. cxb4 {[%clk 0:02:32]}  Qa6 {[%clk 0:02:38]} 19. Ne1 {[%clk 0:02:29]}  Rfc8 {[%clk 0:02:28]} 20. g4 {[%clk 0:02:02]}  Bh4 {[%clk 0:02:27]} 21. f5 {[%clk 0:01:48]}  Bxe1 {[%clk 0:02:27]} 22. Rxe1 {[%clk 0:01:37]}  exf5 {[%clk 0:02:27]} 23. Nf4 {[%clk 0:01:37]}  Nf8 {[%clk 0:02:12]} 24. Rc1 {[%clk 0:01:29]}  Nfe6 {[%clk 0:02:12]} 25. Nxd5 {[%clk 0:01:28]}  Nxd5 {[%clk 0:02:11]} 26. Bxd5 {[%clk 0:01:29]}  Rd8 {[%clk 0:02:11]} 27. Qf3 {[%clk 0:01:22]}  fxg4 {[%clk 0:01:49]} 28. hxg4 {[%clk 0:01:19]}  Ng5 {[%clk 0:01:33]} 29. Qg2 {[%clk 0:01:14]}  Rxd5 {[%clk 0:01:32]} 30. Qxd5 {[%clk 0:01:13]}  Bxd3 {[%clk 0:01:32]} 31. e6 {[%clk 0:00:57]}  Nxe6 {[%clk 0:01:21]} 32. Rxe6 {[%clk 0:00:46]}  Qxe6 {[%clk 0:01:21]} 33. Qxd3 {[%clk 0:00:45]}  Qxg4 {[%clk 0:01:21]} 34. Qd4 {[%clk 0:00:28]}  Qh3+ {[%clk 0:01:16]} 35. Kg1 {[%clk 0:00:28]}  Qg3+ {[%clk 0:01:17]} 36. Kh1 {[%clk 0:00:23]}  Re8 {[%clk 0:01:17]} 37. Rf1 {[%clk 0:00:02]}  Re2 {[%clk 0:01:09]} 38. Qxg7+ {[%clk 0:00:02]}  Qxg7 {[%clk 0:01:08]} 39. Bxg7 {[%clk 0:00:03]}  Kxg7 {[%clk 0:01:08]} 40. Rf5 {[%clk 0:00:04]}  Re3 {[%clk 0:01:07]} 41. Rb5 {[%clk 0:00:04]}  Rxa3 {[%clk 0:01:07]} 42. Rxb7 {[%clk 0:00:05]}  Rb3 {[%clk 0:01:06]} 43. b5 {[%clk 0:00:05]}  a3 {[%clk 0:01:06]} 44. Ra7 {[%clk 0:00:05]}  Kg6 {[%clk 0:01:04]} 45. b6 {[%clk 0:00:04]}  Rxb6 {[%clk 0:01:04]} 46. Rxa3 {[%clk 0:00:04]}  Rb2 {[%clk 0:01:04]} 47. Rg3+ {[%clk 0:00:02]}  Kf6 {[%clk 0:00:59]} 0-1


[Site "https://www.chess.com"]

[Event "Titled Tuesday Blitz October 19 2021"]
[White "Ibarra Jerez, Jose Carlos"]
[Black "Bekturov, Tamerlan"]
[WhiteFideId "2226332"]
[BlackFideId "13710184"]
[WhiteElo "2626"]
[BlackElo "2186"]
[Result "1-0"]
[Round "10"]
[TimeControl "180+1"]
[Date "2021.10.19"]
[WhiteClock "0:02:34"]
[BlackClock "0:02:34"]

1. e4 {[%clk 0:03:00]}  c6 {[%clk 0:02:58]} 2. d4 {[%clk 0:02:56]}  d5 {[%clk 0:02:46]} 3. e5 {[%clk 0:02:56]}  c5 {[%clk 0:02:45]} 4. dxc5 {[%clk 0:02:56]}  e6 {[%clk 0:02:45]} 5. a3 {[%clk 0:02:55]}  Bxc5 {[%clk 0:02:45]} 6. Qg4 {[%clk 0:02:54]}  Kf8 {[%clk 0:02:43]} 7. Nf3 {[%clk 0:02:54]}  Nc6 {[%clk 0:02:40]} 8. b4 {[%clk 0:02:53]}  Bb6 {[%clk 0:02:38]} 9. Bb2 {[%clk 0:02:53]}  Nh6 {[%clk 0:02:38]} 10. Qf4 {[%clk 0:02:51]}  Bc7 {[%clk 0:02:34]} 11. Bd3 {[%clk 0:02:45]}  f6 {[%clk 0:02:34]} 12. exf6 {[%clk 0:02:34]} 1-0


[Site "https://www.chess.com"]